[Event "Olympiad-39"]
[Site "Khanty-Mansiysk"]
[Date "2010.09.24"]
[Round "4.3"]
[White "Polgar, Judit"]
[Black "Bu, Xiangzhi"]
[Result "1-0"]
[ECO "C41"]
[WhiteElo "2682"]
[BlackElo "2695"]
[Annotator "CB"]
[PlyCount "115"]
[EventDate "2010.09.21"]
[EventType "team-swiss"]
[EventRounds "11"]
[EventCountry "RUS"]
[SourceTitle "CBM 139"]
[Source "ChessBase"]
[SourceDate "2010.11.18"]
[SourceVersion "1"]
[SourceVersionDate "2010.11.18"]
[SourceQuality "1"]
[WhiteTeam "Hungary"]
[BlackTeam "China"]
[WhiteTeamCountry "HUN"]
[BlackTeamCountry "CHN"]
[TimeControl "40/5400+30:1800+30"]

1. e4 e5 2. Nf3 d6 3. d4 exd4 4. Nxd4 Nf6 5. Nc3 Be7 6. g3 O-O 7. Bg2 Nc6 8.
Nxc6 bxc6 9. O-O Nd7 10. b3 Bf6 11. Bb2 Rb8 12. Qd2 Re8 13. Rad1 c5 14. Bc1 Nb6
15. Rfe1 Bg4 16. Ne2 a5 17. h3 Bxe2 18. Rxe2 a4 19. Kh2 Qc8 20. f4 axb3 21.
cxb3 Qa6 22. Qc2 Bd4 23. Be3 Bxe3 24. Rxe3 Re7 25. e5 c4 26. bxc4 dxe5 27. c5
Nd7 28. c6 Nf8 29. fxe5 Qa7 30. Re2 Rbe8 31. Rd5 Qa6 32. a4 Ng6 33. e6 fxe6 34.
Rd7 Nf8 35. Rxe7 Rxe7 36. Rf2 Qa5 37. Qd2 Qxd2 38. Rxd2 Re8 {#} 39. Rd7 $1 {
Brilliant and winning.} Nxd7 ({Trying to hold on passively with} 39... Rc8 {
fails to} 40. a5) ({Or} 39... Ra8 40. Rxc7 Rxa4 41. Re7 Rc4 42. c7 Rc2 43. Kg1
{and Bb7 is decisive.}) 40. cxd7 Rd8 41. Bc6 Kf7 42. a5 Ke7 43. a6 Kd6 44. Bb7
Kxd7 45. a7 Kd6 46. a8=Q Rxa8 47. Bxa8 Ke5 48. Kg2 Kd4 49. Kf3 c5 50. Be4 h6
51. Bg6 c4 52. Kf4 Kc3 53. Bf7 g5+ 54. Ke3 Kb2 55. Bxe6 c3 56. Bf5 c2 57. Bxc2
Kxc2 58. g4 1-0

[Event "EU-ch 12th"]
[Site "Aix les Bains"]
[Date "2011.03.27"]
[Round "6"]
[White "Roser, Kevin"]
[Black "Stefansson, Hannes"]
[Result "1/2-1/2"]
[ECO "C41"]
[WhiteElo "2423"]
[BlackElo "2557"]
[Annotator "Marchand,A/Primel,D"]
[PlyCount "102"]
[EventDate "2011.03.22"]
[EventType "swiss"]
[EventRounds "11"]
[EventCountry "FRA"]
[SourceTitle "CBM 142 Extra"]
[Source "ChessBase"]
[SourceDate "2011.06.27"]
[SourceVersion "1"]
[SourceVersionDate "2011.06.27"]
[SourceQuality "1"]
[TimeControl "40/5400+30:1800+30"]

1. e4 {A.Marchand: Kevin a mis la pression sur le roque du GMI Islandais, dans
une ouverture irrégulière (Pirc transformée en Philidor ?)} d6 2. d4 Nf6 3. Nc3
e5 4. Nf3 Nbd7 5. Bc4 Be7 6. O-O O-O 7. Re1 c6 8. a4 a5 {[%csl Gb4]} (8... b6 {
L'alternative dans cette défense Philidor} 9. d5) 9. h3 Nb6 (9... exd4) (9...
h6) 10. Ba2 (10. Bf1 exd4) 10... Nfd7 $1 {[%cal Gd7c5,Gc5a4,Ge7f6]} 11. Be3
exd4 {Abadonne le centre pour obtenir jouer Nc5 et avoir un bon jeu de pièces
mineures} 12. Qxd4 (12. Bxd4 Nc5 13. Bxc5 dxc5 14. Qe2 Qd6 15. Rad1 $32 {
Parligras,M (2574)-Bologan,V (2663) Moscow Aeroflot op-A1 2008 (1) 1/2}) 12...
Nc5 13. Rad1 $14 {[%csl Rd6] L'isséen a un petit avantage d'espace mais la
position du GMI est solide} Be6 $1 14. Bxe6 fxe6 15. e5 $1 {Forçant les Noirs
а répondre d6d5 qui va donner une case forte "d4" pour faire transiter les
pièces vers l'aile-roi} d5 16. Qg4 $36 {[%csl Re6][%cal Ge3h6,Gd1d4]} Qe8 17.
b3 (17. Nd4 {[%csl Re6]} Qf7 18. b3 Nbd7 19. f4 $14 {[%cal Gf4f5];Ganguly,S 
(2634)-Berkes,F (2663) George Marx Memorial 7th 2009 (3) 1/2}) 17... Nbd7 18.
Bh6 $146 ({RR} 18. Rd4 Rf5 19. Qg3 Kh8 20. Rg4 Qf7 21. Bd2 Rf8 22. Re2 Bd8 23.
Nd4 Bc7 24. f4 Bd8 25. Be3 Be7 26. Kh2 g6 27. Qf2 h5 28. Nxf5 Qxf5 29. Rh4 Ne4
30. Nxe4 Qxe4 {1/2-1/2 Ni Hua (2645)-Danielsen,H (2519)/New Delhi 2011/
Mega2011 Update 04}) 18... Qf7 19. Re2 (19. Rd4 $5 {[%cal Gd4f4]}) 19... Kh8
$11 20. Bc1 (20. Be3) 20... Bd8 {[%cal Gd8c7,Gc7e5,Gd8b6]} 21. Nd4 {[%csl Gd4]}
Bb6 (21... Bc7) 22. Kh1 Rfe8 (22... Rae8) 23. f4 Nf8 24. Nf3 {[%cal Gf3g5,
Gg5f7]} h6 {[%csl Rg6]} 25. Be3 (25. Nh4 {[%csl Rg6][%cal Gf4f5]} Rad8 26. Ba3
(26. f5)) 25... Ng6 (25... Rad8) 26. Rf1 Nd7 {Le signe que les Blancs ont une
petite initiative car le GMI se résoud а faire une concession en échangant son
bon B} 27. Bxb6 Nxb6 28. Nd4 Nd7 {[%cal Gd7e5] Les N noirs font pression sur
"e5" afin de retarder la percée thématique f4f5} 29. Ree1 {Un coup d'attente
pour lier les R} (29. h4 $2 {[%cal Gh4h5]} Ndxe5 {[%cal Gf7f1]}) 29... Ngf8 30.
f5 $5 (30. h4 $5 {[%cal Gh4h5] Il vallait peut-être mieux retarder la percée
f4f5 et gagner un peu d'espace supplémentaire а l'aile-roi car les Noirs
manquent de contre-jeu} Rad8 31. h5 {[%csl Rg6]} Nc5 32. f5 exf5 33. Rxf5 {
Par rapport а la partie, les Noirs n'ont plus la réponse Qg6} Qd7 34. Ref1 Nfe6
35. Nce2 $16) 30... exf5 31. Rxf5 Qg6 32. Qf4 Nc5 33. Rf1 Nfe6 $132 {[%cal
Ge6d4,Ge6f4] Provoque des échanges et le P isolé "e5" peut-être une faiblesse
en finale} 34. Nxe6 Nxe6 35. Qf2 Kg8 36. Ne2 Re7 37. Nd4 Rae8 38. Nxe6 Rxe6 39.
Qf4 R6e7 40. Rf3 {[%cal Gf3g3]} Qe6 41. h4 {Trop tard!} Qc8 42. h5 Qb8 43. Re3
c5 44. g4 d4 45. Re1 Qd8 46. Qe4 b6 47. Kg2 Re6 48. Ref1 Qc7 49. Re1 Qd8 50.
Ref1 Qc7 51. Re1 Qd8 1/2-1/2

[Event "Sautron op 14th"]
[Site "Sautron"]
[Date "2014.10.26"]
[Round "2"]
[White "Delorme, Alban"]
[Black "Dumitrache, Dragos Nicolae"]
[Result "1/2-1/2"]
[ECO "C41"]
[WhiteElo "2317"]
[BlackElo "2413"]
[Annotator "RR"]
[PlyCount "127"]
[EventDate "2014.10.26"]
[EventType "swiss"]
[EventRounds "9"]
[EventCountry "FRA"]
[SourceTitle "EXT 2015"]
[Source "ChessBase"]
[SourceDate "2014.11.20"]
[SourceVersion "1"]
[SourceVersionDate "2014.11.20"]
[SourceQuality "1"]
[TimeControl "40/5400+30:1800+30"]

1. e4 d6 {[%emt 0:02:56]} 2. d4 {[%emt 0:00:19]} Nf6 {[%emt 0:00:04]} 3. Nc3 {
[%emt 0:00:12]} e5 {[%emt 0:00:05]} 4. Nf3 {[%emt 0:00:11]} Nbd7 {[%emt 0:00:
04]} 5. Bc4 {[%emt 0:00:16]} Be7 {[%emt 0:00:05]} 6. O-O {[%emt 0:01:18]} O-O {
[%emt 0:00:05]} 7. a4 {[%emt 0:00:36]} c6 {[%emt 0:00:13]} 8. Re1 {[%emt 0:00:
11]} a5 {[%emt 0:00:15]} 9. h3 {[%emt 0:00:28]} (9. b3) (9. Ba2) 9... Nb6 {
[%emt 0:01:07]} (9... h6 10. Be3 Re8 11. d5 Nf8 12. Nd2 Ng6 13. Bf1 Rb8 14. Ba7
Ra8 15. Be3 Rb8 16. Nc4 c5 17. Bd2 Rf8 18. Ra3 b6 19. Nb5 Ne8 20. Rb3 Rb7 21.
Nba3 Bh4 22. Nxb6 Rxb6 23. Bxa5 f5 24. Bxb6 Qg5 25. Nc4 fxe4 26. g3 Nf4 27. Nd2
Nf6 28. Nxe4 Nxe4 29. Rxe4 Bxh3 30. Rxf4 exf4 31. Bxh3 fxg3 32. f3 g2 33. Qe2
Rf4 34. Ba5 Rxa4 35. Be6+ Kh7 36. Qd3+ {1-0 (36) Kasimdzhanov,R (2706)
-Andreikin,D (2722) Baku 2014}) (9... exd4 10. Nxd4) 10. Bd3 {[%emt 0:00:08]}
Nfd7 {[%emt 0:02:02]} 11. Be3 $14 {[%emt 0:07:45][%csl Rb6]} exd4 {[%emt 0:04:
13]} 12. Bxd4 {[%emt 0:05:19]} Bf6 {[%emt 0:02:22]} 13. e5 $5 $146 {[%emt 0:11:
31]} (13. Bf1 Re8 14. b3 Ne5 15. Nxe5 dxe5 16. Be3 Nd7 17. Qf3 Qe7 18. Rad1 Nc5
19. Bc4 Ne6 20. Bxe6 Bxe6 21. Bb6 Bg5 22. Rd3 Qb4 23. Be3 Bxe3 24. Qxe3 Red8
25. Red1 Rxd3 26. Rxd3 h6 27. Kh2 Kh7 28. Na2 Qe7 29. Qb6 Ra6 30. Qe3 b6 31.
Nc3 Qc7 32. Kg1 Ra8 33. Qd2 Rb8 34. Qe3 Kg8 35. Kh2 Qe7 36. Rd1 Kf8 37. Rd3 Qc5
38. Qxc5+ bxc5 39. Nd1 c4 40. bxc4 Rb4 41. Ne3 Ke7 42. Rb3 Rxa4 {Vega
Gutierrez,B (2180)-Strikovic,A (2529) Las Palmas 2013 0-1 (74)}) 13... dxe5 {
[%emt 0:21:11]} 14. Nxe5 {[%emt 0:00:52]} Nxe5 {[%emt 0:00:46]} 15. Bxe5 {
[%emt 0:01:28]} Bxe5 {[%emt 0:00:15]} 16. Qh5 {[%emt 0:02:45]} h6 {[%emt 0:18:
57]} 17. Qxe5 $32 {[%emt 0:01:00][%csl Ra8,Rb6,Rc8][%cal Ga1d1]} Nd7 {[%emt 0:
00:07]} 18. Qe7 $6 {[%emt 0:15:38] Une décision bizarre avec une telle avance
de développement} (18. Qe3 $142 Nf6 19. Rad1 $36 {[%cal Gd1d8,Gd3h7]}) 18...
Qxe7 {[%emt 0:00:29]} 19. Rxe7 {[%emt 0:00:03]} Nc5 $1 {[%emt 0:00:06]} 20. Bc4
{[%emt 0:03:12]} Be6 $11 {[%emt 0:00:09]} 21. Bxe6 {[%emt 0:00:52]} fxe6 {
[%emt 0:00:04]} 22. Re1 {[%emt 0:01:14]} Rad8 {[%emt 0:08:53]} 23. Ne4 {
[%emt 0:00:22]} Nxe4 {[%emt 0:00:46]} 24. Rxe4 {[%emt 0:00:49]} Rd1+ {[%emt 0:
06:07]} 25. Kh2 {[%emt 0:00:01]} Rxf2 {[%emt 0:00:08]} 26. Rxb7 {[%emt 0:00:19]
} Rdd2 $44 {[%emt 0:00:21]} 27. Rg4 {[%emt 0:00:42]} g5 {[%emt 0:00:05]} 28. b4
$1 {[%emt 0:01:55]} (28. h4) 28... axb4 {[%emt 0:04:28]} 29. a5 {[%emt 0:00:28]
} Rxc2 {[%emt 0:00:41]} 30. a6 {[%emt 0:01:05]} Ra2 {[%emt 0:00:06]} 31. a7 $40
{[%emt 0:07:03][%csl Ga7,Gb7,Rg4] Le Pa7 est monstrueux mais les Blancs ont du
mal à activer la Rg4 bloquée en défense.} c5 {[%emt 0:06:22]} 32. Rc7 $6 {
[%emt 0:08:07]} (32. Rg3 c4 33. Rb8+ Kg7 34. a8=Q Rxa8 35. Rxa8 c3 36. Rc8)
32... b3 {[%emt 0:04:55]} 33. Rc8+ {[%emt 0:02:05]} Rf8 {[%emt 0:00:35]} 34.
Rxc5 {[%emt 0:00:17]} Rxa7 $15 {[%emt 0:01:24]} 35. Rb4 {[%emt 0:00:21]} Rf2 {
[%emt 0:00:51]} 36. Rxb3 {[%emt 0:05:09]} Kf7 {[%emt 0:00:17]} 37. Rf3+ $1 {
[%emt 0:05:38] Les Blancs ont des meilleures chances de nulle après
l'échange d'une R} Rxf3 {[%emt 0:00:05]} 38. gxf3 {[%emt 0:00:01]} Kf6 {
[%emt 0:00:51]} (38... Ra4 39. Rc7+ Kf6) 39. Rc4 {[%emt 0:05:28]} Kf5 {[%emt 0:
00:36]} 40. h4 $1 {[%emt 0:00:00]} Rg7 {[%emt 0:00:00]} 41. Kh3 {[%emt 0:07:20]
} h5 {[%emt 0:05:52]} 42. hxg5 {[%emt 0:02:39] le P supplémentaire des Noirs
sera difficile à valoriser} Rxg5 {[%emt 0:00:39]} 43. Kh4 {[%emt 0:01:16]} Rg1
{[%emt 0:00:52]} 44. Rc8 {[%emt 0:00:41]} Rh1+ {[%emt 0:06:32]} 45. Kg3 {
[%emt 0:00:37]} h4+ {[%emt 0:00:13]} 46. Kg2 {[%emt 0:00:12]} Ra1 {[%emt 0:00:
41]} 47. Rf8+ {[%emt 0:01:28]} Ke5 {[%emt 0:00:04]} 48. Rh8 {[%emt 0:00:43]}
Ra2+ {[%emt 0:01:32]} 49. Kh3 {[%emt 0:00:32]} Ra1 {[%emt 0:03:09]} 50. Kg2 {
[%emt 0:02:49]} Ra4 {[%emt 0:00:05]} 51. Rh5+ {[%emt 0:00:44]} Kf6 {[%emt 0:00:
05]} 52. Rh8 {[%emt 0:05:16]} Rf4 {[%emt 0:01:47]} 53. Rf8+ {[%emt 0:00:56]}
Ke5 {[%emt 0:00:13]} 54. Rh8 {[%emt 0:01:09]} Kd4 {[%emt 0:02:04]} 55. Kf2 {
[%emt 0:01:26]} e5 {[%emt 0:00:40]} 56. Rd8+ {[%emt 0:03:06]} Kc5 {[%emt 0:00:
21]} 57. Kg2 {[%emt 0:00:47]} h3+ {[%emt 0:02:41]} 58. Kg3 {[%emt 0:00:32]} h2
{[%emt 0:00:07]} 59. Rh8 {[%emt 0:05:00]} Kd4 {[%emt 0:01:43]} 60. Rh5 {
[%emt 0:00:30]} Rf5 {[%emt 0:00:48]} 61. Rh4+ {[%emt 0:01:07]} Kd3 {[%emt 0:00:
26]} 62. Kg2 {[%emt 0:03:07]} h1=Q+ {[%emt 0:00:49]} 63. Rxh1 {[%emt 0:00:21]}
Ke2 {[%emt 0:00:12]} 64. Rh3 {[%emt 0:01:21]} 1/2-1/2